bitfinex/quotes_BTCUSD_20240723
["timestamp","ask_amount","ask_price","bid_price","bid_amount"]
[1721754150838,0.00940501,65917.0,65916.0,0.0150982]
[1721754151696,0.02340501,65917.0,65916.0,0.0150982]
[1721754151892,0.02340501,65917.0,65916.0,0.0380982]
[1721754152149,0.46452101,65917.0,65916.0,0.0380982]
[1721754152401,0.76793201,65917.0,65916.0,0.0150982]
[1721754152591,1.21836292,65917.0,65916.0,0.0150982]
[1721754152760,1.21836292,65917.0,65916.0,0.0160982]
[1721754152761,1.23236292,65917.0,65916.0,0.0160982]
[1721754153161,0.47852101,65917.0,65916.0,0.0160982]
[1721754153360,0.17511001,65917.0,65916.0,0.0160982]
[1721754153561,0.02218531,65917.0,65916.0,0.0160982]
[1721754153763,0.77471231,65917.0,65916.0,0.0150982]
[1721754153963,1.07812331,65917.0,65916.0,0.0150982]
[1721754154189,0.303482,65902.0,65895.0,0.151756]
[1721754154389,0.151735,65905.0,65900.0,0.151744]
[1721754154548,0.303473,65904.0,65900.0,0.0150982]
[1721754154749,0.151741,65902.0,65900.0,0.0150982]
[1721754154955,0.151742,65901.0,65900.0,0.0150982]
[1721754155159,0.758712,65901.0,65900.0,0.0150982]
[1721754155361,0.303554,65886.0,65876.0,0.0150982]
[1721754155629,0.37700642,65894.0,65877.0,0.04705232]
[1721754155830,0.22050933,65894.0,65876.0,0.0150982]
[1721754156031,0.151792,65880.0,65872.0,0.303619]
[1721754156204,0.05087986,65912.0,65877.0,0.303594]
[1721754156409,0.151747,65899.0,65878.0,0.1920813]
[1721754156624,0.154544,65898.0,65878.0,0.1920813]
[1721754156825,0.002794,65898.0,65891.0,0.151764]
[1721754157022,0.002794,65899.0,65894.0,0.151758]
[1721754157200,0.002794,65900.0,65878.0,0.1920813]
[1721754157401,0.154539,65900.0,65894.0,0.151758]
[1721754157600,0.154539,65900.0,65879.0,0.02081795]
[1721754157601,0.002794,65900.0,65895.0,0.023]
[1721754157802,0.002794,65900.0,65899.0,0.151747]
[1721754158073,0.002794,65900.0,65899.0,0.326494]
[1721754158186,0.014,65901.0,65900.0,0.151745]
[1721754158388,0.303452,65909.0,65900.0,0.023]
[1721754158389,0.151735,65905.0,65900.0,0.023]
[1721754158722,0.002794,65904.0,65901.0,0.151742]
[1721754158930,0.151729,65907.0,65901.0,0.151741]
[1721754159129,0.15989231,65917.0,65902.0,0.17001991]
[1721754159456,0.303421,65915.0,65902.0,0.17001991]
[1721754159630,0.303476,65903.0,65902.0,0.023]
[1721754159833,0.75869,65903.0,65902.0,0.023]
[1721754160194,0.014,65904.0,65902.0,0.023]
[1721754160325,0.002794,65916.0,65907.0,0.303453]
[1721754160509,0.002794,65914.0,65908.0,0.023]
[1721754160745,0.002794,65914.0,65908.0,0.1898242]
[1721754160975,0.151716,65913.0,65908.0,0.0380982]
[1721754161237,0.07348942,65912.0,65908.0,0.0380982]
[1721754161497,0.455172,65909.0,65908.0,0.0380982]
[1721754161726,0.02218531,65917.0,65916.0,0.303416]
[1721754161952,0.02218531,65917.0,65916.0,1.28039971]
[1721754162170,0.00940501,65928.0,65927.0,0.758412]
[1721754162383,0.00940501,65928.0,65927.0,0.4931452]
[1721754162607,0.00940501,65928.0,65927.0,0.94353011]
[1721754162811,0.00940501,65928.0,65927.0,1.03788312]
[1721754163735,0.01140501,65928.0,65927.0,1.18448312]
[1721754164166,0.01140501,65928.0,65927.0,1.48784812]
[1721754164337,0.01140501,65928.0,65927.0,1.79121312]
[1721754164540,0.00940501,65932.0,65929.0,0.1598]
[1721754164762,0.00940501,65932.0,65927.0,0.54185223]
[1721754164763,0.00940501,65932.0,65931.0,0.76183991]
[1721754164966,0.00940501,65932.0,65931.0,1.20873391]
[1721754165244,0.00940501,65932.0,65931.0,2.70873391]
[1721754165437,0.00940501,65932.0,65931.0,2.85569656]
[1721754165637,0.00940501,65932.0,65931.0,3.01549656]
[1721754165864,0.00940501,65932.0,65931.0,3.31884356]
[1721754166191,0.01040501,65932.0,65931.0,3.32784356]
[1721754166406,0.01040501,65932.0,65931.0,3.63119056]
[1721754166614,0.00940501,65954.0,65931.0,3.63119056]
[1721754166615,0.00940501,65954.0,65936.0,1.524758]
[1721754166827,0.00940501,65954.0,65953.0,0.758115]
[1721754167032,0.00940501,65954.0,65953.0,1.22347911]
[1721754167234,0.00940501,65957.0,65956.0,0.151616]
[1721754167437,0.00940501,65957.0,65956.0,1.36813191]
[1721754167572,0.00940501,65957.0,65956.0,1.81832656]
[1721754167780,0.00940501,65981.0,65962.0,0.1598]
[1721754167986,0.00940501,65981.0,65967.0,0.1598]
[1721754167987,0.002794,65980.0,65967.0,0.1598]
[1721754168187,0.00940501,65981.0,65970.0,0.303164]
[1721754168389,0.00940501,65981.0,65971.0,0.24611812]
[1721754168620,0.00940501,65981.0,65980.0,0.151561]
[1721754168853,0.00940501,65981.0,65980.0,0.98510735]
[1721754169058,0.01840501,65981.0,65980.0,1.09488846]
[1721754169265,0.01840501,65981.0,65980.0,1.34514332]
[1721754169691,0.00092401,65992.0,65991.0,0.151535]
[1721754169897,0.00092401,65992.0,65991.0,0.69663808]
[1721754170160,0.00092401,65992.0,65991.0,0.19006355]
[1721754170357,0.45552401,65992.0,65991.0,0.0380982]
[1721754170570,0.75859101,65992.0,65991.0,0.0380982]
[1721754170765,0.15245701,65992.0,65991.0,0.0380982]
[1721754171132,0.00532902,65994.0,65993.0,0.151531]
[1721754171302,0.00532902,65994.0,65993.0,0.20368482]
[1721754171554,0.00532902,65994.0,65993.0,0.25034463]
[1721754171868,0.45991402,65994.0,65993.0,0.023]
[1721754172072,0.45991402,65994.0,65992.0,0.17001991]
[1721754172073,0.151531,65993.0,65992.0,0.17001991]
[1721754172203,0.00532902,65994.0,65992.0,0.17001991]
[1721754172601,0.00532902,65994.0,65993.0,0.454593]
[1721754172806,0.00532902,65994.0,65993.0,0.72945533]
[1721754173028,0.00532902,65994.0,65993.0,1.03251733]
[1721754173424,0.00532902,65994.0,65993.0,0.27486233]
[1721754173625,0.45991402,65994.0,65993.0,0.17001991]
[1721754173879,0.76497102,65994.0,65993.0,0.17001991]
[1721754174070,0.15885702,65994.0,65993.0,0.17001991]
[1721754174307,0.00532902,65994.0,65993.0,0.17001991]
[1721754174508,0.30838602,65994.0,65993.0,0.20368492]
[1721754174628,0.00532902,65994.0,65993.0,0.17301991]
[1721754175253,0.0125,66000.0,65994.0,0.03824956]
[1721754175514,0.0125,66000.0,65995.0,0.17001991]
[1721754175756,0.0125,66000.0,65995.0,0.20826947]
[1721754176122,0.002794,65999.0,65995.0,0.17001991]
[1721754176294,0.002794,65999.0,65998.0,0.151519]
[1721754176495,0.002794,65999.0,65998.0,0.37447]
[1721754176698,0.0125,66000.0,65999.0,0.454551]
[1721754176899,0.0125,66000.0,65999.0,0.6624038]
[1721754177105,0.0125,66000.0,65999.0,1.11240045]
[1721754177645,0.0125,66000.0,65999.0,0.80936645]
[1721754177867,0.0125,66000.0,65999.0,1.11240045]
[1721754177989,0.0125,66000.0,65999.0,1.18940045]
[1721754178200,0.01139401,66029.0,66009.0,0.1397]
[1721754178393,0.01139401,66029.0,66015.0,0.30296]
[1721754178590,0.01139401,66029.0,66016.0,0.002794]
[1721754178790,0.01139401,66029.0,66016.0,0.0150982]
[1721754178791,0.07348942,66023.0,66016.0,0.0150982]
[1721754179020,0.151476,66017.0,66016.0,0.0150982]
[1721754179225,0.75738,66017.0,66016.0,0.0150982]
[1721754179427,1.26755191,66017.0,66016.0,0.0150982]
[1721754179627,1.57050391,66017.0,66015.0,0.001]
[1721754179852,0.454489,66008.0,66007.0,0.0150982]
[1721754180112,1.13396442,66008.0,66007.0,0.0150982]
[1721754180743,1.28098433,66008.0,66007.0,0.0150982]
[1721754180945,1.51968433,66008.0,66007.0,0.0150982]
[1721754181368,1.52268433,66008.0,66007.0,0.0150982]
[1721754181783,1.82567733,66008.0,66007.0,0.0150982]
[1721754181977,1.51968433,66008.0,66007.0,0.0150982]
[1721754182355,1.37266442,66008.0,66007.0,0.0150982]
[1721754183164,0.96967142,66008.0,66007.0,0.0150982]
[1721754183369,0.454489,66008.0,66007.0,0.0150982]
[1721754183577,0.454489,66008.0,66007.0,0.0390982]
[1721754183808,0.757482,66008.0,66007.0,0.0390982]
[1721754184024,1.069475,66008.0,66007.0,0.0400982]
[1721754184226,0.766482,66008.0,66007.0,0.0400982]
[1721754184592,0.009,66008.0,66007.0,0.0400982]
[1721754185143,0.009,66008.0,66007.0,0.025]
[1721754185325,0.766482,66008.0,66007.0,0.025]
[1721754186305,0.463489,66008.0,66007.0,0.025]
[1721754186916,0.766482,66008.0,66007.0,0.002]
[1721754187124,1.069475,66008.0,66007.0,0.002]
[1721754187347,1.21649491,66008.0,66007.0,0.002]
[1721754187553,1.51948791,66008.0,66007.0,0.002]
[1721754187782,1.21649491,66008.0,66007.0,0.002]
[1721754188179,1.51948791,66008.0,66007.0,0.002]
[1721754188382,1.21649491,66008.0,66007.0,0.002]
[1721754188551,1.51948791,66008.0,66007.0,0.002]
[1721754188755,1.90448091,66008.0,66007.0,0.002]
[1721754188958,2.07058091,66008.0,66007.0,0.002]
[1721754189156,1.76758791,66008.0,66007.0,0.002]
[1721754189540,1.46459491,66008.0,66007.0,0.002]
[1721754189750,0.914582,66008.0,66007.0,0.002]
[1721754189956,0.009,66008.0,66007.0,0.001]
[1721754190170,0.302981,66011.0,66000.0,0.151514]
[1721754190171,0.151499,66007.0,66000.0,0.151514]
[1721754190369,0.30299,66009.0,66000.0,0.20068889]
[1721754190370,0.151497,66008.0,66000.0,0.20068889]
[1721754190568,0.014,66008.0,66001.0,0.177304]
[1721754190771,0.014,66008.0,66007.0,0.001]
[1721754190772,0.165496,66008.0,66007.0,0.001]
[1721754190974,0.757482,66008.0,66007.0,0.0160982]
[1721754191195,0.757482,66008.0,66007.0,0.0390982]
[1721754191397,1.060475,66008.0,66007.0,0.0160982]
[1721754191810,0.757482,66008.0,66007.0,0.0160982]
[1721754192011,0.0605,66015.0,66007.0,0.0390982]
[1721754192211,0.07348942,66009.0,66008.0,0.023]
[1721754192461,0.22498342,66009.0,66008.0,0.023]
[1721754192611,0.07348942,66009.0,66008.0,0.023]
[1721754192941,0.302972,66013.0,66008.0,0.023]
[1721754193116,0.07348942,66009.0,66008.0,0.023]
[1721754193516,0.0781,66025.0,66008.0,0.023]
[1721754193716,0.07509401,66030.0,66014.0,0.002794]
[1721754193898,0.00939401,66030.0,66020.0,0.302937]
[1721754194101,0.00939401,66030.0,66021.0,0.023]
[1721754194308,0.00939401,66030.0,66022.0,0.151464]
[1721754194509,0.07348942,66024.0,66021.0,0.0380982]
[1721754194929,0.014,66023.0,66022.0,0.151464]
[1721754195097,0.014,66023.0,66022.0,0.62441291]
[1721754195293,0.014,66023.0,66022.0,1.23027091]
[1721754195532,0.01139401,66029.0,66025.0,0.302913]
[1721754195725,0.02039401,66029.0,66028.0,0.454351]
[1721754195931,0.02039401,66029.0,66028.0,0.7723502]
[1721754196126,0.01139401,66029.0,66028.0,0.94237011]
[1721754196327,0.01139401,66029.0,66028.0,1.24527111]
[1721754196528,0.01139401,66029.0,66028.0,1.38294975]
[1721754196732,0.01139401,66029.0,66028.0,0.47424675]
[1721754197079,0.01639401,66029.0,66028.0,0.77714775]
[1721754197566,0.01639401,66029.0,66028.0,0.0380982]
[1721754198752,0.02339401,66029.0,66028.0,0.0380982]
[1721754198992,0.01339401,66029.0,66028.0,0.3409992]
[1721754199212,0.01339401,66029.0,66028.0,0.94237011]
[1721754199509,0.01339401,66029.0,66028.0,0.76599752]
[1721754200004,0.01339401,66029.0,66028.0,0.0400982]
[1721754200470,0.16484201,66029.0,66028.0,0.0440982]
[1721754200669,0.77063601,66029.0,66028.0,0.0440982]
[1721754200879,0.46773901,66029.0,66028.0,0.0440982]
[1721754201074,0.01339401,66029.0,66028.0,0.029]
[1721754201275,0.01139401,66029.0,66028.0,0.17645]
[1721754201472,0.01139401,66029.0,66028.0,0.025]
[1721754201752,0.01139401,66029.0,66028.0,1.00950041]
[1721754201963,0.01139401,66029.0,66028.0,1.31440141]
[1721754202184,0.01139401,66029.0,66028.0,1.30832655]
[1721754202465,0.01139401,66029.0,66028.0,1.37622655]
[1721754202636,0.01139401,66029.0,66028.0,1.85892755]
[1721754202842,0.01139401,66029.0,66028.0,1.85692755]
[1721754203006,0.01139401,66029.0,66028.0,2.57692755]
[1721754203434,0.01139401,66029.0,66028.0,4.08192755]
[1721754203632,0.01139401,66029.0,66028.0,4.54662855]
[1721754203834,0.00939401,66038.0,66037.0,1.06001]
[1721754204054,0.00939401,66038.0,66037.0,1.42812911]
[1721754204259,0.00939401,66038.0,66037.0,1.45112911]
[1721754204462,0.00939401,66038.0,66037.0,1.59282911]
[1721754204851,0.00939401,66038.0,66037.0,2.78996911]
[1721754205252,0.00939401,66038.0,66037.0,0.88710911]
[1721754205468,0.00939401,66038.0,66037.0,0.16211811]
[1721754205653,0.00939401,66038.0,66037.0,0.61640811]
[1721754205868,0.01039401,66038.0,66037.0,0.63040811]
[1721754206228,0.00939401,66038.0,66037.0,0.61640811]
[1721754206442,0.00939401,66038.0,66037.0,1.28376892]
[1721754206588,0.01139401,66049.0,66048.0,1.199035]
[1721754206744,0.00854,66066.0,66048.0,1.199035]
[1721754206745,0.00854,66066.0,66056.0,0.756932]
[1721754206952,1e-08,66057.0,66056.0,1.78439611]
[1721754207199,1e-08,66057.0,66056.0,1.48162311]
[1721754207358,0.00854,66066.0,66057.0,1.358688]
[1721754207751,0.00854,66066.0,66057.0,1.90847591]
[1721754207957,0.00854,66066.0,66057.0,1.29010256]
[1721754208485,0.01039401,66058.0,66057.0,0.69856656]
[1721754208672,0.01039401,66058.0,66057.0,0.028]
[1721754208871,0.01039401,66058.0,66057.0,0.179384]
[1721754209072,0.01039401,66058.0,66057.0,0.014]
[1721754209312,0.01039401,66058.0,66057.0,0.32640391]
[1721754209531,0.01039401,66058.0,66057.0,0.93193991]
[1721754209689,0.00939401,66058.0,66057.0,1.77797972]
[1721754209888,0.00939401,66058.0,66057.0,1.32941172]
[1721754210094,0.00443388,66060.0,66059.0,0.916697]
[1721754210312,0.00854,66066.0,66065.0,0.91663]
[1721754210600,0.00854,66066.0,66065.0,1.32168011]
[1721754210734,0.00854,66066.0,66065.0,0.33648411]
[1721754210936,0.00854,66066.0,66065.0,0.94194811]
[1721754211136,0.00854,66066.0,66065.0,1.80781692]
[1721754211364,0.00854,66066.0,66065.0,1.50508492]
[1721754211560,0.00854,66066.0,66065.0,1.60508492]
[1721754212172,0.00854,66066.0,66065.0,1.91781692]
[1721754212693,0.00854,66066.0,66065.0,1.90781692]
[1721754212894,0.00854,66066.0,66065.0,1.92181692]
[1721754213196,0.00854,66066.0,66065.0,1.60508492]
[1721754213336,0.00954,66066.0,66065.0,1.45428492]
[1721754213531,0.00954,66066.0,66065.0,1.35368011]
[1721754213737,0.00854,66066.0,66065.0,1.01894811]
[1721754213961,0.00854,66066.0,66065.0,1.32168011]
[1721754214468,0.00954,66066.0,66065.0,1.34468011]
[1721754214723,0.00954,66066.0,66065.0,0.28511811]
[1721754215023,0.00854,66066.0,66065.0,0.17611811]
[1721754215222,0.00854,66066.0,66065.0,0.19911811]
[1721754215354,0.00954,66066.0,66065.0,0.36539592]
[1721754215586,0.00954,66066.0,66065.0,0.95576172]
[1721754215791,0.00954,66066.0,66065.0,0.94984991]
[1721754215993,0.00954,66066.0,66065.0,1.23858191]
[1721754216300,0.00954,66066.0,66065.0,1.55531391]
[1721754216505,0.00854,66066.0,66065.0,1.34358191]
[1721754216903,0.00954,66066.0,66065.0,1.35258191]
[1721754217128,0.00954,66066.0,66065.0,1.96207656]
[1721754217329,0.00954,66066.0,66065.0,2.78507656]
[1721754217535,0.00954,66066.0,66065.0,2.77107656]
[1721754217736,0.00854,66066.0,66065.0,2.61181656]
[1721754217964,0.00954,66066.0,66065.0,2.79461656]
[1721754218191,0.00954,66066.0,66065.0,2.78061656]
[1721754218389,0.00854,66075.0,66065.0,2.78061656]
[1721754218390,0.00854,66075.0,66069.0,0.0825]
[1721754218597,0.00854,66075.0,66074.0,1.12594491]
[1721754218836,0.002,66089.0,66088.0,0.311113]
[1721754218988,0.002,66089.0,66088.0,1.20959441]
[1721754219198,0.002,66089.0,66088.0,1.87724641]
[1721754219372,0.002,66089.0,66088.0,2.17987241]
[1721754219573,0.0151173,66106.0,66095.0,1.521473]
[1721754219799,0.0151173,66106.0,66095.0,1.48099711]
[1721754219992,0.0151173,66106.0,66095.0,1.93055376]
[1721754220193,0.00803,66096.0,66095.0,2.02175376]
[1721754220395,0.00803,66096.0,66095.0,2.0460805]
[1721754220619,0.00803,66096.0,66095.0,2.12106119]
[1721754220825,0.00803,66096.0,66095.0,1.77908239]
[1721754221029,0.00803,66096.0,66095.0,2.46197176]
[1721754221180,0.00803,66096.0,66095.0,0.73000911]
[1721754221376,0.00803,66096.0,66095.0,0.0290982]
[1721754221582,0.00803,66096.0,66095.0,0.0150982]
[1721754221784,0.00803,66096.0,66095.0,0.0290982]
[1721754222021,0.00803,66096.0,66095.0,0.0430982]
[1721754222225,0.00803,66096.0,66095.0,0.21068923]
[1721754222480,0.00803,66096.0,66095.0,0.37598623]
[1721754222725,0.00803,66096.0,66095.0,0.98117423]
[1721754222927,0.00803,66096.0,66095.0,1.28376823]
[1721754223132,0.00803,66096.0,66095.0,1.30676823]
[1721754223802,0.00803,66096.0,66095.0,1.74116223]
[1721754224014,0.00803,66096.0,66095.0,1.85516223]
[1721754224509,0.00803,66096.0,66095.0,3.34116223]
[1721754224715,0.00674406,66096.0,66095.0,3.44416223]
[1721754224957,0.00674406,66096.0,66095.0,3.42906403]
[1721754225170,0.00674406,66096.0,66095.0,3.41506403]
[1721754225500,0.00674406,66096.0,66095.0,3.42906403]
[1721754225893,0.00674406,66096.0,66095.0,3.41506403]
[1721754226319,0.00674406,66096.0,66095.0,1.37767003]
[1721754226662,0.00674406,66096.0,66095.0,1.37625503]
[1721754226869,0.0065082,66096.0,66095.0,0.46847303]
[1721754227092,0.0065082,66096.0,66095.0,0.44547303]
[1721754227298,0.0065082,66096.0,66095.0,1.05066103]
[1721754227648,0.0065082,66096.0,66095.0,1.06466103]
[1721754227892,0.0065082,66096.0,66095.0,0.45947303]
[1721754228117,0.0065082,66096.0,66095.0,0.74806703]
[1721754228299,0.0696082,66096.0,66095.0,0.014]
[1721754228514,0.5234932,66096.0,66095.0,0.028]
[1721754228712,0.5234932,66096.0,66095.0,0.014]
[1721754229032,0.5234932,66096.0,66095.0,0.028]
[1721754229243,1.1286732,66096.0,66095.0,0.028]
[1721754229452,1.12714563,66096.0,66095.0,0.028]
[1721754229642,0.90325563,66096.0,66095.0,0.028]
[1721754230679,1.35286554,66096.0,66095.0,0.028]
[1721754231127,1.20584563,66096.0,66095.0,0.014]
[1721754231327,0.60066563,66096.0,66095.0,0.014]
[1721754231643,0.90325563,66096.0,66095.0,0.014]
[1721754231981,0.60066563,66096.0,66095.0,0.014]
[1721754232181,0.90325563,66096.0,66095.0,0.014]
[1721754232472,0.91025563,66096.0,66095.0,0.015]
[1721754232619,0.60766563,66096.0,66095.0,0.015]
[1721754232820,0.15378063,66096.0,66095.0,0.015]
[1721754233026,0.91025563,66096.0,66095.0,0.015]
[1721754233203,1.21284563,66096.0,66095.0,0.001]
[1721754233608,0.14578063,66096.0,66081.0,0.002794]
[1721754233834,0.14578063,66096.0,66085.0,0.302638]
[1721754234038,0.00998063,66096.0,66095.0,0.454891]
[1721754234195,0.00998063,66096.0,66095.0,0.64000911]
[1721754234421,0.00398063,66096.0,66095.0,0.0380982]
[1721754234631,0.00598063,66096.0,66095.0,0.0390982]
[1721754234847,0.00998063,66096.0,66095.0,0.0380982]
[1721754235248,0.002,66096.0,66095.0,0.22346562]
[1721754235498,0.002,66096.0,66095.0,0.4919892]
[1721754235722,0.002,66096.0,66095.0,0.0380982]
[1721754235952,0.004,66096.0,66095.0,0.1893952]
[1721754236127,0.004,66096.0,66095.0,0.0380982]
[1721754236909,0.155295,66096.0,66095.0,0.0380982]
[1721754237112,0.004,66096.0,66095.0,0.0380982]
[1721754237492,0.004,66096.0,66095.0,0.0400982]
[1721754237700,0.07348942,66098.0,66095.0,0.0400982]
[1721754237919,0.151292,66097.0,66096.0,0.023]
[1721754238121,0.453877,66097.0,66096.0,0.023]
[1721754238325,0.151292,66097.0,66096.0,0.023]
[1721754238718,0.07348942,66098.0,66096.0,0.023]
[1721754238919,0.151292,66097.0,66096.0,0.023]
[1721754239325,0.002,66097.0,66096.0,0.023]
[1721754240698,0.07448942,66098.0,66096.0,0.023]
[1721754240933,0.304585,66097.0,66095.0,0.0160982]
[1721754241132,0.453885,66096.0,66095.0,0.0160982]
[1721754241333,0.453885,66096.0,66095.0,0.0150982]
[1721754241334,0.756475,66096.0,66095.0,0.0150982]
[1721754241541,0.453885,66096.0,66095.0,0.0150982]
[1721754241739,0.07348942,66098.0,66083.0,0.08892088]
[1721754241991,0.07348942,66085.0,66084.0,0.93942391]
[1721754242184,0.002,66097.0,66092.0,0.151303]
[1721754242337,0.151299,66094.0,66093.0,0.023]
[1721754242542,0.151297,66095.0,66093.0,0.023]
[1721754242742,0.605234,66090.0,66079.0,0.151333]
[1721754242943,0.07348942,66080.0,66079.0,0.151334]
[1721754243140,0.07348942,66087.0,66079.0,0.17001991]
[1721754243323,0.151337,66078.0,66074.0,0.00903606]
[1721754243533,0.07348942,66080.0,66074.0,0.302689]
[1721754243732,0.07348942,66080.0,66060.0,0.066913]
[1721754243955,0.07348942,66068.0,66063.0,0.151369]
[1721754244159,0.07348942,66068.0,66063.0,0.14701991]
[1721754244365,0.07348942,66068.0,66067.0,0.454083]
[1721754244568,0.07348942,66080.0,66067.0,0.14701991]
[1721754244777,0.30256,66103.0,66086.0,0.151317]
[1721754244778,0.0631,66091.0,66086.0,0.151317]
[1721754245108,0.0631,66091.0,66072.0,0.0645]
[1721754245109,0.004,66080.0,66079.0,0.151334]
[1721754245339,0.004,66080.0,66078.0,0.151335]
[1721754245512,0.07348942,66079.0,66078.0,0.14701991]
[1721754245749,0.07348942,66079.0,66078.0,0.29835591]
[1721754245948,0.15798942,66087.0,66086.0,0.001]
[1721754246306,0.07748942,66087.0,66086.0,0.001]
[1721754246852,0.004,66087.0,66086.0,0.90460691]
[1721754247078,0.004,66087.0,66086.0,0.024]
[1721754247284,0.07348942,66090.0,66086.0,0.023]
[1721754247478,0.07348942,66090.0,66083.0,0.023]
[1721754247683,0.151313,66088.0,66083.0,0.151323]
[1721754247883,0.07348942,66090.0,66084.0,0.023]
[1721754248111,0.07348942,66090.0,66049.0,0.305598]
[1721754248112,0.07348942,66090.0,66068.0,0.31741899]
[1721754248315,0.07348942,66090.0,66060.0,0.000913]
[1721754248316,0.07348942,66069.0,66060.0,0.000913]
[1721754248546,0.07348942,66069.0,66062.0,0.0090012]
[1721754248767,0.07348942,66069.0,66060.0,0.000913]
[1721754248768,0.13378942,66069.0,66060.0,0.000913]
[1721754248897,0.07348942,66069.0,66060.0,0.000913]
[1721754249097,0.07348942,66061.0,66060.0,0.000913]
[1721754249396,0.22486442,66061.0,66060.0,0.000913]
[1721754249605,0.83036442,66061.0,66060.0,0.000913]
[1721754249810,0.97356442,66061.0,66060.0,0.000913]
[1721754250039,0.21668942,66061.0,66060.0,0.15229]
[1721754250213,0.07348942,66061.0,66060.0,0.470274]
[1721754250410,0.07348942,66061.0,66060.0,0.773029]
[1721754250797,0.07348942,66061.0,66060.0,0.470274]
[1721754250993,0.07348942,66061.0,66060.0,0.15229]
[1721754251218,0.07348942,66061.0,66060.0,0.023913]
[1721754251420,0.07348942,66061.0,66060.0,0.001913]
[1721754251640,0.83036442,66061.0,66060.0,0.001913]
[1721754251816,1.13311442,66061.0,66060.0,0.000913]
[1721754252120,0.07348942,66061.0,66060.0,0.008913]
[1721754252359,1.03738433,66061.0,66060.0,0.008913]
[1721754252499,1.42163433,66061.0,66060.0,0.008913]
[1721754252697,1.42163433,66061.0,66060.0,0.014913]
[1721754252943,1.42163433,66061.0,66060.0,0.008913]
[1721754253426,1.52263433,66061.0,66060.0,0.008913]
[1721754253591,1.82538433,66061.0,66060.0,0.000913]
[1721754253790,1.82538433,66061.0,66060.0,0.001913]
[1721754254224,1.52263433,66061.0,66060.0,0.000913]
[1721754254758,1.52663433,66061.0,66060.0,0.000913]
[1721754255428,1.82838433,66061.0,66060.0,0.000913]
[1721754255860,1.83038433,66061.0,66060.0,0.001913]
[1721754256367,1.52563433,66061.0,66060.0,0.000913]
[1721754256828,1.52763433,66061.0,66060.0,0.001913]
[1721754256969,0.22098942,66061.0,66060.0,0.001913]
[1721754257176,0.002,66061.0,66060.0,0.456045]
[1721754257410,0.006,66061.0,66060.0,0.7598]
[1721754257835,0.004,66061.0,66060.0,0.7588]
[1721754258030,0.22484642,66069.0,66062.0,0.151372]
[1721754258229,0.22484642,66069.0,66060.0,0.303668]
[1721754258230,0.151359,66068.0,66061.0,0.151375]
[1721754258437,0.07348942,66069.0,66060.0,0.001913]
[1721754258658,0.0602,66082.0,66068.0,0.302718]
[1721754258841,0.0602,66082.0,66061.0,0.14701991]
[1721754258842,0.0602,66082.0,66075.0,0.151343]
[1721754259037,0.0602,66082.0,66075.0,0.454029]
[1721754259443,0.15133,66081.0,66075.0,0.151343]
[1721754259618,0.00083,66095.0,66075.0,0.151343]
[1721754259619,0.06103,66095.0,66082.0,0.45359962]
[1721754259840,0.06103,66095.0,66089.0,0.453933]
[1721754260103,0.00083,66095.0,66089.0,0.453933]
[1721754260459,0.00083,66095.0,66086.0,0.302633]
[1721754260664,0.00083,66095.0,66089.0,0.151311]
[1721754260869,0.151307,66091.0,66087.0,0.023]
[1721754261022,0.00083,66095.0,66089.0,0.453933]
[1721754261223,0.00083,66095.0,66089.0,0.756555]
[1721754261590,0.00083,66095.0,66089.0,1.23419691]
[1721754261723,0.00083,66095.0,66089.0,1.38115956]
[1721754261922,0.00083,66095.0,66089.0,1.37615956]
[1721754262133,0.00083,66095.0,66089.0,1.22919691]
[1721754263013,0.00083,66095.0,66089.0,1.23419691]
[1721754263216,0.00083,66095.0,66089.0,1.37929691]
[1721754263358,0.00083,66095.0,66089.0,1.07367491]
[1721754263534,0.00083,66095.0,66089.0,1.06867491]
[1721754263739,0.07548942,66090.0,66089.0,1.47909424]
[1721754263944,0.07648942,66090.0,66089.0,1.48509424]
[1721754264210,0.003,66090.0,66089.0,1.78771624]
[1721754264379,0.004,66090.0,66089.0,1.88171624]
[1721754264588,0.00083,66095.0,66094.0,0.756497]
[1721754264767,0.00083,66095.0,66094.0,1.26143295]
[1721754264966,0.00083,66095.0,66094.0,2.76143295]
[1721754265175,0.00083,66095.0,66094.0,3.06403195]
[1721754266262,0.00083,66095.0,66094.0,3.16403195]
[1721754266613,0.00083,66095.0,66094.0,3.20368961]
[1721754266997,0.00033,66095.0,66094.0,3.20368961]
[1721754267260,0.00033,66095.0,66094.0,3.20868961]
[1721754267416,0.00033,66095.0,66094.0,2.90609061]
[1721754267762,0.00033,66095.0,66094.0,2.86143295]
[1721754267941,0.00033,66095.0,66094.0,2.87543295]
[1721754268259,0.00033,66095.0,66094.0,2.88943295]
[1721754268907,0.00033,66095.0,66094.0,2.87543295]
[1721754269114,0.00033,66095.0,66094.0,2.88743295]
[1721754269320,0.00033,66095.0,66094.0,1.38266461]
[1721754269621,0.00033,66095.0,66094.0,1.36966461]
[1721754269947,0.00033,66095.0,66094.0,1.35966461]
[1721754270532,0.00033,66095.0,66094.0,0.72414957]
[1721754270650,0.00033,66095.0,66094.0,1.01274857]
[1721754270852,0.00033,66095.0,66094.0,1.02674857]
[1721754271159,0.00033,66095.0,66094.0,0.03423166]
[1721754271334,0.454221,66095.0,66094.0,0.025]
[1721754271538,0.756815,66095.0,66094.0,0.025]
[1721754271796,0.151627,66095.0,66094.0,0.025]
[1721754272240,0.00033,66095.0,66094.0,0.011]
[1721754272502,0.00033,66095.0,66094.0,0.0474907]
[1721754272709,0.00033,66095.0,66083.0,0.00911301]
[1721754272710,0.60529,66084.0,66083.0,0.0087335]
[1721754272848,0.60529,66084.0,66055.0,0.302774]
[1721754272849,0.302666,66080.0,66066.0,0.151361]
[1721754273217,0.07348942,66068.0,66058.0,0.151381]
[1721754273423,0.07348942,66061.0,66056.0,0.0092191]
[1721754273633,0.58761442,66061.0,66037.0,0.151429]
[1721754273747,1.34013433,66061.0,66042.0,0.151417]
[1721754273946,1.34013433,66061.0,66041.0,0.151418]
[1721754274156,1.34013433,66061.0,66041.0,0.002794]
[1721754274357,1.34013433,66061.0,66042.0,0.154212]
[1721754274577,1.34013433,66061.0,66045.0,0.002794]